bitfinex/quotes_ETHUSD_20250219
["timestamp","ask_amount","ask_price","bid_price","bid_amount"]
[1739931149132,0.7582,2688.5,2687.9,4.51606809]
[1739931149334,0.7582,2688.5,2688.0,0.88905439]
[1739931149820,0.7582,2688.5,2688.0,0.06540658]
[1739931150341,0.7582,2688.5,2688.1,0.06526255]
[1739931150496,0.7582,2688.5,2687.9,3.72026]
[1739931150696,0.7582,2688.5,2688.0,0.10253685]
[1739931151010,0.7582,2688.5,2688.0,0.0653387]
[1739931151430,0.7582,2688.5,2687.8,5.36]
[1739931151922,0.7582,2688.5,2687.9,0.06541485]
[1739931155945,0.7582,2688.5,2687.6,0.74487409]
[1739931156141,0.7582,2688.5,2687.7,0.06556714]
[1739931159736,2.48149966,2688.3,2687.7,0.06556714]
[1739931159940,0.7789,2688.2,2687.7,0.06556714]
[1739931160151,0.7789,2688.0,2687.7,0.06556714]
[1739931160532,0.7789,2688.0,2687.1,5.36]
[1739931160756,0.7789,2688.0,2687.2,0.06596041]
[1739931161856,2.48149966,2688.0,2687.2,0.06596041]
[1739931162024,0.7789,2687.9,2687.2,0.06596041]
[1739931162225,0.7789,2687.7,2687.2,0.06596041]
[1739931167443,0.7789,2687.7,2686.8,0.74960181]
[1739931167643,0.7789,2687.7,2687.3,0.06656328]
[1739931167837,0.7789,2687.7,2686.8,0.74960181]
[1739931168037,0.7789,2687.7,2687.4,0.06648709]
[1739931168272,0.7789,2687.7,2686.8,0.74960181]
[1739931168660,0.7789,2687.7,2686.9,0.0668681]
[1739931169860,0.8219,2687.6,2686.9,0.0668681]
[1739931170176,0.8219,2687.4,2686.9,0.0668681]
[1739931170478,0.8219,2687.4,2686.6,0.75212488]
[1739931170636,2.48149966,2687.4,2687.0,0.06679188]
[1739931170979,0.8219,2687.3,2687.1,0.06671568]
[1739931171339,0.8219,2687.3,2686.6,0.75212488]
[1739931171636,0.8219,2687.1,2686.7,0.06702054]
[1739931172041,0.8219,2687.1,2686.5,0.74324475]
[1739931172881,0.8219,2687.1,2686.6,0.06709677]
[1739931174173,2.48149966,2687.1,2686.0,0.8146]
[1739931174359,0.7842,2687.0,2686.1,0.06747801]
[1739931174550,0.7842,2686.9,2685.9,5.36]
[1739931174748,0.7842,2686.9,2686.0,0.06833247]
[1739931175671,0.8088,2686.7,2686.0,0.06833247]
[1739931176081,0.8088,2686.7,2685.6,6.72349]
[1739931176248,0.8088,2686.5,2686.1,0.06836123]
[1739931176447,0.8088,2686.5,2685.4,1.03861309]
[1739931176448,0.8088,2686.5,2685.4,6.1143]
[1739931176648,2.48149966,2686.5,2686.2,0.06828497]
[1739931176849,0.8088,2686.4,2685.4,6.1143]
[1739931177054,0.8088,2686.3,2685.4,3.72377]
[1739931177267,0.8088,2686.3,2685.5,0.0688189]
[1739931177268,0.61888,2686.2,2685.5,0.0688189]
[1739931177464,0.8088,2686.1,2685.5,0.0688189]
[1739931177768,0.8088,2686.1,2685.6,0.06892798]
[1739931177962,0.8088,2686.1,2685.2,4.47838]
[1739931178169,0.8088,2686.1,2685.3,0.06915687]
[1739931179074,0.8088,2686.1,2685.4,0.72861471]
[1739931179477,0.8088,2686.1,2685.5,0.06900427]
[1739931180681,1.19971797,2686.0,2685.5,0.06900427]
[1739931181379,0.39091797,2686.0,2685.5,0.06900427]
[1739931181583,0.39091797,2686.0,2684.7,6.1503]
[1739931181584,2.48149966,2685.9,2684.7,6.1503]
[1739931181783,0.8147,2685.7,2684.8,0.06991553]
[1739931182151,0.8147,2685.7,2684.6,0.28]
[1739931182364,0.8147,2685.7,2684.5,3.72498]
[1739931182548,0.8147,2685.7,2684.6,0.07006821]
[1739931183260,0.8147,2685.7,2684.9,0.72852427]
[1739931183672,0.8147,2685.7,2685.0,0.06988034]
[1739931186136,0.8147,2685.7,2685.0,3.79427034]
[1739931186285,0.8147,2685.7,2685.0,0.06988034]
[1739931186486,0.8147,2685.7,2685.0,3.79416034]
[1739931186662,0.8147,2685.7,2685.1,0.53073846]
[1739931186985,0.8147,2685.7,2685.2,0.07077235]
[1739931187183,0.8147,2685.7,2684.9,1.51322427]
[1739931187480,0.8147,2685.7,2685.0,0.07092499]
[1739931187874,0.8147,2685.7,2685.0,3.79522499]
[1739931188344,0.8147,2685.7,2685.2,3.72409]
[1739931188549,0.8147,2685.7,2685.3,0.07070841]
[1739931189183,0.8147,2685.7,2685.0,3.72439]
[1739931189363,0.8147,2685.7,2685.3,3.72396]
[1739931189564,0.8147,2685.7,2685.4,0.07063211]
[1739931189759,0.8147,2685.7,2685.1,0.52376143]
[1739931189960,0.8147,2685.7,2685.2,0.07074143]
[1739931190849,0.8147,2685.7,2685.3,3.72395]
[1739931191049,0.7874,2686.0,2685.4,3.7238]
[1739931191284,0.7874,2686.0,2685.5,3.7236]
[1739931191661,0.7874,2686.0,2685.6,0.07034965]
[1739931192061,0.7874,2686.0,2685.4,0.03723406]
[1739931192262,0.7874,2686.0,2685.7,0.07027337]
[1739931192472,0.7874,2686.0,2685.4,3.76104419]
[1739931192684,0.7874,2686.0,2685.8,0.07019709]
[1739931192994,0.7874,2686.0,2685.9,0.07012081]
[1739931193195,0.7874,2686.0,2685.6,0.74457438]
[1739931193558,0.7874,2686.0,2685.7,0.07027337]
[1739931195290,5.76945841,2686.7,2685.7,0.07027337]
[1739931195291,0.8011,2686.3,2685.7,3.79360337]
[1739931195620,0.8011,2686.9,2685.8,0.49104556]
[1739931195802,0.8011,2686.9,2685.8,7.17707778]
[1739931195962,0.8011,2686.9,2685.9,0.07012081]
[1739931197418,0.791,2686.6,2685.9,0.07012081]
[1739931197589,0.791,2686.4,2685.9,0.07012081]
[1739931197897,0.791,2686.3,2685.0,4.79149]
[1739931198071,0.791,2686.2,2686.0,0.06924698]
[1739931198272,0.791,2686.2,2685.3,3.0]
[1739931198456,0.791,2686.2,2686.1,0.06917072]
[1739931198663,0.791,2686.1,2685.2,3.75330832]
[1739931198867,0.791,2686.1,2685.2,7.47739832]
[1739931199172,0.791,2686.1,2685.3,0.06997262]
[1739931201726,8.65249966,2686.1,2685.3,0.06997262]
[1739931201931,0.7606,2685.7,2684.5,0.7858]
[1739931202232,0.7606,2685.6,2684.6,0.07050691]
[1739931202427,6.1406,2685.6,2684.6,0.07050691]
[1739931202606,6.1406,2685.6,2684.3,0.7858]
[1739931202607,0.822,2685.5,2684.7,0.76479964]
[1739931202926,0.822,2685.5,2684.8,0.07035423]
[1739931203134,0.822,2685.3,2684.8,0.07035423]
[1739931203505,0.822,2685.3,2684.7,0.76479964]
[1739931203706,0.822,2685.3,2684.9,0.0702779]
[1739931203892,0.822,2685.3,2684.8,0.07035423]
[1739931204097,0.822,2685.3,2685.0,0.07096854]
[1739931204297,0.822,2685.3,2684.9,0.07104486]
[1739931204298,6.202,2685.3,2684.9,0.07104486]
[1739931204498,1.48742,2685.2,2685.1,0.07089222]
[1739931204699,0.8052,2685.1,2685.0,0.07096854]
[1739931205191,0.8052,2685.1,2684.2,5.36]
[1739931205424,0.8052,2685.0,2684.3,0.07150294]
[1739931205728,0.8052,2684.8,2684.3,0.07150294]
[1739931206030,0.8052,2684.8,2684.4,0.07156273]
[1739931206435,0.8052,2684.8,2683.9,3.0]
[1739931206638,0.8052,2684.8,2684.5,0.07148638]
[1739931206810,0.8052,2684.8,2684.1,0.73709871]
[1739931207136,0.8052,2684.8,2684.2,0.07171546]
[1739931209525,0.8052,2684.8,2683.7,5.36]
[1739931209727,0.8052,2684.8,2684.3,0.07163909]
[1739931209917,0.8052,2684.8,2683.7,3.0]
[1739931210118,0.8052,2684.8,2684.4,0.07156273]
[1739931210314,0.7694,2684.6,2683.8,0.75963079]
[1739931210733,0.7694,2684.6,2683.9,0.07194459]
[1739931214657,6.1494,2684.6,2683.9,0.07194459]
[1739931215464,0.7573,2684.5,2683.9,0.07194459]
[1739931220547,4.7517,2684.6,2683.9,0.07194459]
[1739931220774,0.5142222,2684.5,2683.9,0.07194459]
[1739931221465,0.5142222,2684.5,2683.5,3.72645]
[1739931221672,0.5142222,2684.5,2684.0,0.07313628]
[1739931221866,0.5142222,2684.5,2683.6,0.73526224]
[1739931222072,0.5142222,2684.5,2684.1,0.07382759]
[1739931222230,4.7517,2684.6,2683.6,4.46150224]
[1739931222431,4.7517,2684.6,2683.7,0.07413313]
[1739931223671,0.7789,2684.5,2683.7,0.07413313]
[1739931223893,0.7789,2684.5,2683.8,0.7613]
[1739931224078,0.7789,2684.5,2683.9,0.45615831]
[1739931224397,0.7789,2684.5,2683.9,0.53013866]
[1739931224976,0.7789,2684.5,2683.9,4.25602866]
[1739931225175,0.7789,2684.5,2683.9,0.53013866]
[1739931227697,0.833,2684.7,2684.2,0.75344409]
[1739931228060,0.833,2684.7,2684.3,0.07345814]
[1739931228261,0.7788,2684.6,2684.3,0.07345814]
[1739931228584,0.7788,2684.6,2683.5,0.7591]
[1739931228761,0.7788,2684.6,2683.6,0.07398663]
[1739931229564,0.7788,2684.6,2683.6,0.83691881]
[1739931229764,0.7788,2684.6,2683.6,0.07398663]
[1739931229972,0.7537,2684.4,2683.6,0.07398663]
[1739931231328,0.7537,2684.4,2683.6,6.28181629]
[1739931231527,4.7517,2684.8,2683.6,6.28181629]
[1739931231693,0.8169,2684.7,2683.7,0.798]
[1739931232093,0.8169,2684.7,2683.8,0.07388337]
[1739931232393,0.8149,2684.5,2683.8,0.07388337]
[1739931234097,0.8149,2684.5,2683.8,0.33346277]
[1739931238013,0.8149,2684.5,2683.9,0.2595794]
[1739931238246,0.8149,2684.5,2684.0,0.0737306]
[1739931239725,0.8149,2684.5,2683.6,0.2595794]
[1739931239926,0.8149,2684.5,2684.1,0.07360468]
[1739931240146,0.8044,2684.4,2683.7,0.2595794]
[1739931240565,0.8044,2684.4,2683.8,0.07381526]
[1739931241064,0.8044,2684.4,2683.7,0.2595794]
[1739931241270,0.8302,2684.2,2683.7,0.2595794]
[1739931241464,0.8302,2684.2,2683.8,0.07381526]
[1739931241967,0.8302,2684.2,2683.2,0.75492279]
[1739931242162,0.7859,2684.1,2683.2,0.75492279]
[1739931242364,0.7859,2684.1,2683.3,0.07459982]
[1739931243233,0.7859,2684.1,2683.3,0.33449922]
[1739931243659,0.7859,2683.9,2683.3,0.33449922]
[1739931244547,0.7859,2683.9,2683.3,0.07459982]
[1739931244877,0.7994,2683.7,2683.1,0.2598994]
[1739931245329,0.7994,2683.5,2683.2,0.07478772]
[1739931245530,0.7994,2683.4,2683.2,0.07478772]
[1739931245730,0.7994,2683.4,2683.1,0.2598994]
[1739931246285,0.7994,2683.4,2683.2,0.07475675]
[1739931246998,0.7994,2683.4,2682.6,0.2598994]
[1739931247161,0.7994,2683.4,2682.6,1.18581331]
[1739931247361,0.7994,2683.4,2682.7,0.07513896]
[1739931249160,0.7994,2683.4,2682.2,6.137]
[1739931249360,0.7994,2683.4,2682.8,0.07506251]
[1739931249582,0.7994,2683.4,2682.4,0.76349111]
[1739931249789,0.8069,2683.2,2682.3,0.25939142]
[1739931250129,0.8069,2683.2,2682.4,0.0756719]
[1739931251404,0.8069,2683.2,2682.1,0.005]
[1739931251618,0.8069,2683.2,2682.5,0.07563261]
[1739931251754,0.8069,2683.2,2682.1,0.005]
[1739931251955,0.8098,2683.0,2682.1,0.005]
[1739931252162,0.8098,2683.0,2682.2,0.07586203]
[1739931252367,0.8098,2683.0,2682.2,0.80542684]
[1739931252588,0.8098,2683.0,2682.2,0.07586203]
[1739931252791,0.8098,2682.9,2682.2,0.07586203]
[1739931252967,0.8098,2682.7,2682.2,0.07586203]
[1739931253179,5.5615,2682.7,2682.2,0.07586203]
[1739931255874,0.7874,2682.6,2682.2,0.07586203]
[1739931256366,0.7874,2682.6,2682.1,0.005]
[1739931256767,0.7874,2682.6,2682.2,0.07681623]
[1739931257095,1.374223,2682.6,2682.2,0.07681623]
[1739931263388,0.7874,2682.6,2682.2,0.07681623]
[1739931271833,4.7517,2682.7,2682.2,3.80497623]
[1739931272131,4.7517,2682.7,2682.2,0.07681623]
[1739931272415,0.7625,2682.9,2682.2,3.80509623]
[1739931272610,0.7625,2682.9,2682.3,0.38100962]
[1739931272973,0.7625,2682.9,2682.4,0.07692984]
[1739931273180,0.7552,2683.2,2682.5,4.55878]
[1739931273715,0.7552,2683.2,2682.6,0.07677691]
[1739931275589,5.5339,2683.4,2682.7,3.72757]
[1739931275813,4.7517,2683.8,2682.9,0.8105]
[1739931275992,0.827,2683.7,2682.9,4.53779]
[1739931276193,0.827,2683.7,2683.0,0.07647111]
[1739931277282,0.827,2683.7,2683.0,3.80362111]
[1739931277584,4.7517,2683.8,2683.1,0.53561852]
[1739931278084,4.7517,2683.8,2683.2,0.07583482]
[1739931278913,4.7517,2683.8,2683.3,0.7784]
[1739931279101,0.7573,2683.9,2683.3,0.7784]
[1739931279278,0.7573,2683.9,2683.4,0.07519238]
[1739931280184,0.762,2684.1,2683.4,0.07519238]
[1739931280501,0.762,2684.1,2683.4,0.90962006]
[1739931281286,0.762,2684.1,2683.5,0.03726285]
[1739931281615,0.7557,2684.3,2683.5,0.83340446]
[1739931283985,0.7557,2684.3,2683.5,0.87066564]
[1739931284187,0.7557,2684.3,2683.6,3.72631]
[1739931284499,0.7557,2684.3,2683.7,0.53431384]
[1739931285220,4.7517,2684.4,2683.8,0.8216]
[1739931285399,0.7571,2684.6,2683.8,0.8216]
[1739931285587,0.7571,2684.6,2683.9,3.83761023]
[1739931285787,0.7571,2684.6,2683.9,3.8003535]
[1739931286007,0.7571,2684.6,2684.0,0.46219535]
[1739931286208,4.7517,2684.9,2684.1,0.7779]
[1739931286418,4.7517,2684.9,2684.1,0.85221074]
[1739931286632,0.7883,2684.8,2684.1,0.85221074]
[1739931286833,0.7883,2684.8,2684.1,0.07431074]
[1739931287033,0.7748,2684.4,2684.1,0.07431074]
[1739931287233,0.7748,2684.4,2683.6,0.7959]
[1739931287234,0.7748,2684.4,2683.5,8.57175074]
[1739931287537,0.7748,2684.4,2683.6,0.07179724]
[1739931287831,0.7748,2684.6,2683.7,3.72611]
[1739931288036,0.7748,2684.6,2683.6,0.07179724]
[1739931288235,1.38285,2684.6,2683.8,0.07164444]
[1739931288433,1.38285,2684.6,2683.7,4.66226064]
[1739931288606,1.38285,2684.6,2683.9,0.07124592]
[1739931288805,1.38285,2684.6,2683.8,0.07131612]
[1739931289027,1.38285,2684.6,2684.0,0.07116334]
[1739931289230,1.38285,2684.6,2683.9,0.07123973]
[1739931289435,1.38285,2684.6,2684.1,0.07108697]
[1739931289743,1.38285,2684.6,2684.2,0.07101059]
[1739931289939,1.38285,2684.6,2683.7,0.8643598]
[1739931290138,1.38285,2684.6,2684.3,0.07093423]
[1739931290308,1.38285,2684.6,2684.0,0.807]
[1739931290840,1.38285,2684.6,2684.1,0.07108697]
[1739931291210,1.38285,2684.6,2683.8,0.807]
[1739931291409,1.38285,2684.6,2684.2,0.07101059]
[1739931291619,0.193685,2684.5,2683.8,0.807]
[1739931291816,0.193685,2684.5,2684.3,0.07093423]
[1739931292020,0.193685,2684.5,2683.8,0.807]
[1739931292435,0.193685,2684.5,2683.9,0.07123973]
[1739931300556,0.7956,2684.4,2683.9,0.07123973]
[1739931300758,0.7956,2684.4,2683.5,5.63651074]
[1739931300959,0.7956,2684.4,2684.0,0.07106427]
[1739931301155,0.7956,2684.4,2683.5,10.74805713]
[1739931301348,0.7956,2684.4,2684.1,0.07098789]
[1739931301531,0.7956,2684.4,2683.5,7.02160713]
[1739931301734,4.7517,2685.0,2684.2,0.07091152]
[1739931302057,0.8265,2684.9,2684.1,0.8279]
[1739931302259,0.8265,2684.9,2684.3,0.07083516]
[1739931302433,0.8265,2684.9,2684.2,0.07091152]
[1739931302772,0.8265,2684.9,2684.3,0.07069274]
[1739931302773,2.48149966,2684.8,2684.3,0.07069274]
[1739931302955,2.48149966,2684.8,2683.8,5.65231074]
[1739931302956,4.10379997,2684.7,2683.8,5.65231074]
[1739931303119,0.773,2684.6,2684.4,0.07061638]
[1739931303324,3.25449966,2684.5,2683.4,0.8069]
[1739931303562,3.52749966,2684.5,2683.4,0.8069]
[1739931303937,1.046,2684.5,2683.4,1.54600801]
[1739931304148,5.7977,2684.5,2683.4,1.54600801]
[1739931304325,0.8273,2684.3,2683.4,0.8069]
[1739931308090,0.8273,2684.3,2683.5,0.27649706]
[1739931308405,0.8273,2684.3,2683.5,0.31375726]
[1739931308700,1.3852,2684.3,2683.5,0.27649706]
[1739931310476,0.7617,2684.0,2682.9,0.7681]
[1739931311091,0.794,2683.9,2682.9,0.7681]
[1739931311291,0.794,2683.8,2682.9,0.7681]
[1739931311533,4.7517,2683.9,2682.9,0.7681]
[1739931311534,0.794,2683.6,2682.9,0.7681]
[1739931311699,4.7517,2683.9,2683.0,3.54389293]
[1739931311903,0.794,2683.8,2683.0,1.06239327]
[1739931312697,0.794,2683.8,2683.0,4.78947327]
[1739931313313,0.794,2683.8,2683.1,0.53720889]
[1739931313514,4.7517,2683.9,2683.1,1.04381778]
[1739931313811,4.7517,2683.9,2683.4,0.8284]
[1739931314221,4.7517,2683.9,2683.4,3.8284]
[1739931314886,4.7517,2683.9,2683.4,0.8284]
[1739931315719,4.6971,2684.0,2683.4,0.8284]
[1739931316313,0.8311,2683.9,2683.2,0.7893]
[1739931316487,1.38392,2683.9,2683.2,4.54353898]
[1739931316686,0.8311,2683.9,2683.2,4.54353898]
[1739931316908,4.6971,2684.0,2683.3,0.25998645]
[1739931317321,4.6971,2684.0,2683.3,3.98672645]
[1739931317486,4.6971,2684.0,2683.3,0.53619473]
[1739931318127,4.6971,2684.0,2683.4,0.07167126]
[1739931318513,4.6971,2684.0,2683.5,0.7606]
[1739931318832,4.6971,2684.0,2683.5,0.83219484]
[1739931319036,4.6971,2684.0,2683.5,1.34168944]
[1739931320036,4.6971,2684.0,2683.6,3.72627]
[1739931320214,4.6971,2684.0,2683.7,3.72607]
[1739931320414,4.6971,2684.0,2683.7,0.07144204]
[1739931321740,4.6971,2684.0,2683.7,0.9508667]
[1739931322109,4.6971,2684.0,2683.8,0.74175925]
[1739931322342,4.6971,2684.0,2683.8,0.81290196]
[1739931324947,4.6971,2684.0,2683.8,4.53894196]
[1739931325150,4.6971,2684.0,2683.9,0.8326]
[1739931325440,4.6971,2684.0,2683.9,0.90366632]
[1739931325642,4.6971,2684.0,2683.9,5.62730198]
[1739931325823,4.6971,2684.0,2683.9,1.90138198]
[1739931326023,4.6971,2684.0,2683.9,5.62730198]
[1739931326425,4.6971,2684.0,2683.9,5.90329266]
[1739931326626,4.6971,2684.0,2683.9,2.17737266]
[1739931327016,4.6971,2684.0,2683.9,1.179657]
[1739931327349,4.6971,2684.0,2683.9,0.347057]
[1739931328437,4.6971,2684.0,2683.9,3.347057]
[1739931330518,4.6971,2684.0,2683.9,3.60680801]
[1739931330965,4.6971,2684.0,2683.9,3.33081733]
[1739931331534,4.6971,2684.0,2683.9,8.40329906]
[1739931331871,4.6971,2684.0,2683.9,9.22949906]
[1739931333022,4.6971,2684.0,2683.9,14.0749098]
[1739931333868,4.6971,2684.0,2683.9,14.35080904]
[1739931334064,4.6971,2684.0,2683.9,15.31605982]
[1739931334856,4.6971,2684.0,2683.9,15.75687239]
[1739931335175,4.6971,2684.0,2683.9,24.56687239]
[1739931335517,3.40303226,2684.0,2683.9,25.09200045]
[1739931336384,0.7513,2685.7,2684.3,0.8092]
[1739931336518,0.7513,2685.7,2685.2,4.53321]
[1739931336807,4.7517,2686.5,2685.4,2.48149966]
[1739931336808,0.7513,2686.2,2685.4,2.48149966]
[1739931337256,0.7513,2686.2,2685.5,0.06884219]
[1739931337572,0.7513,2686.2,2685.2,4.53322]
[1739931337860,0.7513,2686.2,2685.6,0.06876589]
[1739931338036,0.7513,2686.2,2685.3,0.75964777]
[1739931338238,0.7513,2686.2,2685.7,0.06868961]
[1739931338440,0.7513,2686.2,2685.3,0.75964777]
[1739931338641,0.7513,2686.2,2685.8,0.06861333]
[1739931338805,0.7513,2686.2,2685.2,3.8092]
[1739931339008,0.7513,2686.2,2685.9,0.06853705]
[1739931339329,0.7513,2686.2,2685.2,4.56615901]
[1739931339330,0.7513,2686.2,2685.3,3.72396]
[1739931339625,0.7513,2686.2,2686.0,0.06846078]
[1739931339803,0.7513,2686.2,2685.2,12.01418901]
[1739931340008,0.7513,2686.2,2686.1,0.06838452]
[1739931340238,0.7513,2686.2,2685.2,8.29016901]
[1739931340440,0.7513,2686.2,2685.6,3.0]
[1739931340645,0.7513,2686.2,2685.7,4.83445894]
[1739931340817,0.7907,2686.6,2685.9,3.72312]
[1739931341018,0.7907,2686.6,2685.8,3.72326]
[1739931341203,0.7907,2686.6,2686.0,0.06808349]
[1739931341539,0.7907,2686.6,2685.7,3.55539966]
[1739931341540,0.7907,2686.6,2686.1,0.06800723]
[1739931341741,0.7907,2686.6,2685.7,3.55539966]
[1739931341945,0.7907,2686.6,2686.2,0.06793097]
[1739931342245,0.7907,2686.6,2685.5,3.0]
[1739931342442,0.7907,2686.6,2686.3,0.06785472]
[1739931342747,0.7907,2686.6,2685.6,0.74590525]
[1739931342957,0.7907,2686.6,2686.4,0.06777847]
[1739931343162,0.7907,2686.6,2685.6,0.74590525]
[1739931343362,0.7907,2686.6,2686.5,0.06770223]
[1739931343507,0.7907,2686.6,2685.6,0.74590525]
[1739931343715,0.7907,2686.6,2685.7,0.06831232]
[1739931345107,0.7907,2686.6,2685.5,3.0]
[1739931345313,0.7907,2686.6,2685.6,0.06838861]
[1739931345645,0.7529,2686.4,2685.6,0.06838861]
[1739931346049,0.7529,2686.4,2685.4,4.84541074]
[1739931346256,0.7529,2686.4,2685.7,0.06732878]
[1739931346551,0.7529,2686.4,2685.4,4.84541074]
[1739931346750,0.7529,2686.4,2685.8,0.0672525]
[1739931346954,0.7529,2686.4,2685.4,4.84541074]
[1739931347151,0.7529,2686.4,2685.4,5.8052983]
[1739931347769,0.7922,2686.2,2685.5,0.06748136]
[1739931348251,0.7983,2685.8,2685.0,0.75904855]
[1739931348411,0.7983,2685.8,2684.6,7.3269104]
[1739931348412,0.7983,2685.8,2685.6,0.06488436]
[1739931348613,0.7983,2685.8,2684.6,4.84541074]
[1739931348816,0.7983,2685.8,2684.7,1.77802183]
[1739931348817,0.7867,2685.8,2684.7,1.77802183]
[1739931349117,0.7867,2685.6,2684.7,1.77802183]
[1739931350261,0.7867,2685.6,2684.7,0.0655712]
[1739931351121,0.7867,2685.6,2684.3,8.0917104]
[1739931351316,0.8002,2685.4,2684.3,5.61021074]
[1739931351520,0.8002,2685.4,2684.4,0.82111614]
[1739931351774,0.8002,2685.4,2684.4,0.06580025]
[1739931351936,0.32816997,2685.3,2684.4,0.06580025]
[1739931352134,0.8002,2685.2,2684.4,0.06580025]
[1739931352453,0.8002,2685.0,2684.0,5.64721074]
[1739931352660,0.8002,2685.0,2684.5,0.0657239]
[1739931352822,0.8002,2685.0,2684.0,6.38691691]
[1739931353170,1.18336997,2685.0,2684.1,0.70472104]
[1739931353978,1.18336997,2685.0,2684.1,0.06602935]
[1739931353979,0.8266,2684.9,2684.1,0.06602935]
[1739931354271,0.55,2684.8,2684.1,0.06602935]
[1739931354421,0.8266,2684.7,2684.1,0.06602935]
[1739931354623,0.8015,2684.5,2683.6,0.74097586]
[1739931354936,0.55,2684.4,2683.7,0.06712548]
[1739931355260,0.8015,2684.3,2683.7,0.06712548]
[1739931355689,0.8015,2684.3,2683.3,0.7754]
[1739931356181,0.8015,2684.3,2683.4,4.17679]
[1739931356375,0.8015,2684.3,2683.4,0.51763031]
[1739931356583,0.8015,2684.3,2683.4,0.06741031]
[1739931357322,0.8015,2684.3,2683.4,3.79400031]
[1739931357526,0.8015,2684.3,2683.4,3.79399031]
[1739931357723,0.8015,2684.3,2683.4,3.79401031]
[1739931357922,0.8015,2684.3,2683.5,3.72647]
[1739931358180,0.8015,2684.3,2683.6,0.44664552]
[1739931358527,0.8015,2684.3,2683.6,0.06725749]
[1739931358969,0.8015,2684.3,2683.3,3.25689966]
[1739931359207,0.8015,2684.3,2683.7,0.06718109]
[1739931359427,0.8015,2684.3,2683.5,3.72634]
[1739931359626,0.8015,2684.3,2683.6,0.06866613]
[1739931359855,0.8015,2684.3,2683.7,0.37950061]
[1739931360080,0.8015,2684.3,2683.6,0.06866613]
[1739931360284,0.8015,2684.3,2683.8,0.06851333]
[1739931360446,0.8015,2684.3,2683.7,0.06855882]
[1739931360776,0.8015,2684.3,2683.9,0.06840604]
[1739931360980,0.8015,2684.3,2683.3,0.7754]
[1739931361179,0.8015,2684.3,2683.4,1.00355611]
[1739931362032,0.8015,2684.3,2683.4,4.73014611]
[1739931362232,0.8015,2684.3,2683.5,3.72644]
[1739931362535,0.8015,2684.3,2683.6,0.06869086]
[1739931363237,0.8015,2684.3,2683.4,0.93476807]
[1739931363437,0.8015,2684.3,2683.5,0.86059185]
[1739931364984,0.8015,2684.3,2683.5,0.06876108]
[1739931365188,0.8015,2684.3,2683.3,0.7754]
[1739931365478,0.8015,2684.3,2683.4,0.06875713]
[1739931365898,0.8015,2684.3,2683.2,4.84541074]
[1739931366091,0.8015,2684.3,2683.5,0.06868072]
[1739931366233,0.8015,2684.3,2683.3,0.06883355]
[1739931366433,0.812,2684.2,2683.4,0.49142443]
[1739931366659,0.812,2684.2,2683.5,0.06868072]
[1739931367363,4.7517,2684.5,2683.7,3.72619]
[1739931367564,0.8315,2684.4,2683.7,3.72611]
[1739931367862,0.8315,2684.4,2683.8,0.06857516]
[1739931368070,0.8315,2684.4,2683.9,4.10529852]
[1739931368269,0.8315,2685.0,2683.9,0.37946852]
[1739931368435,0.8315,2685.0,2683.8,4.9139859]
[1739931368436,0.8315,2684.8,2684.0,0.0683482]
[1739931368631,0.8315,2684.8,2683.8,4.84541074]
[1739931368865,0.8315,2684.8,2683.9,0.0684184]
[1739931370967,0.8315,2684.8,2684.0,2.48149966]
[1739931371148,0.8315,2684.8,2684.1,1.56700188]
[1739931371466,0.8315,2684.8,2684.1,1.63514389]
[1739931372473,0.8315,2684.8,2684.2,0.03725114]
[1739931372868,0.8315,2684.8,2684.3,0.06784092]
[1739931373262,0.8315,2684.8,2684.0,0.03725112]
[1739931373457,0.8315,2684.8,2684.4,0.06776456]
[1739931373661,0.8315,2684.8,2683.9,5.66841074]
[1739931373973,0.8315,2684.8,2684.5,0.0676882]
[1739931374321,0.8315,2684.8,2684.6,0.06761185]
[1739931374767,0.8315,2684.8,2684.0,6.20716966]
[1739931375277,0.8315,2684.8,2684.2,3.72546]
[1739931375771,0.8315,2684.8,2684.4,3.72511]
[1739931375973,5.5556,2685.1,2684.5,0.372511]
[1739931376180,5.5556,2685.1,2684.5,0.4401992]
[1739931376764,5.5556,2685.1,2684.6,0.03724371]
[1739931376949,0.8039,2685.7,2684.8,3.72462]
[1739931377149,0.8039,2685.7,2684.9,4.882072]
[1739931377357,0.8039,2685.7,2684.9,1.2247409]
[1739931378085,0.8039,2685.7,2685.0,3.76160908]
[1739931378386,0.8039,2685.7,2685.1,3.72418]
[1739931378683,0.8039,2685.7,2685.2,0.06683871]
[1739931379075,0.8039,2685.7,2685.0,3.72438]
[1739931379278,0.8039,2685.7,2685.3,0.0667624]
[1739931379489,0.8039,2685.7,2685.0,3.72438]
[1739931379690,0.8039,2685.7,2685.4,0.0666861]
[1739931379890,0.8039,2685.7,2685.1,0.69909797]
[1739931380048,0.8039,2685.7,2685.5,0.0666098]
[1739931380253,0.8039,2685.7,2685.2,0.03723603]
[1739931380566,0.8039,2685.7,2685.1,4.42333797]
[1739931380567,0.8039,2685.7,2685.3,0.0667624]
[1739931380760,0.8039,2685.7,2685.3,0.51577244]
[1739931381366,0.7683,2686.1,2685.3,0.51577244]
[1739931381561,0.7683,2686.1,2685.3,0.0667624]
[1739931381969,0.7683,2686.1,2685.1,4.42334797]
[1739931382172,0.7683,2686.1,2685.4,0.06624137]
[1739931382495,0.7683,2686.1,2685.5,0.06616507]
[1739931382992,0.7683,2686.1,2685.4,0.85833388]
[1739931383292,0.7683,2686.1,2685.5,0.06616507]
[1739931385294,0.7683,2686.1,2685.6,0.06608878]
[1739931385805,0.7683,2686.1,2684.9,12.1568504]
[1739931385806,0.55,2686.0,2685.7,0.0652526]
[1739931385978,0.55,2685.8,2685.7,0.0652526]
[1739931386306,0.797,2685.7,2684.9,4.84541074]
[1739931386671,0.797,2685.7,2685.0,0.06579908]
[1739931387275,0.55,2685.4,2685.0,0.06579908]
[1739931387639,0.7786,2685.3,2684.2,0.74955005]
[1739931387963,3.55,2685.2,2684.3,0.06633349]